fUST/lending_fUST_20250514
["ID","MTS","AMOUNT","RATE_DAILY","PERIOD"]
[360962801,1747165847736,-400.0,0.00013698,2]
[360962802,1747165847747,-400.0,0.00013698,2]
[360962803,1747165847758,-1424.7,0.00013698,2]
[360962804,1747165847769,-400.0,0.00013698,2]
[360962805,1747165847779,-1049.1,0.00013698,2]
[360962806,1747165847790,-485.76,0.00013698,2]
[360962807,1747165847801,-466.24,0.00013698,2]
[360962808,1747165847813,-1646.78,0.00013698,2]
[360962809,1747165847823,-1090.21,0.00013698,2]
[360962810,1747165847833,-522.36,0.00013698,2]
[360962811,1747165847843,-530.77,0.00013698,2]
[360962812,1747165847855,-470.5,0.00013698,2]
[360962813,1747165847867,-400.0,0.00013698,2]
[360962814,1747165847878,-4246.12,0.00013698,2]
[360962815,1747165847889,-1246.69,0.00013698,2]
[360962816,1747165847901,-473.75,0.00013698,2]
[360962817,1747165847912,-400.0,0.00013698,2]
[360962818,1747165847923,-1286.98,0.00013698,2]
[360962819,1747165847934,-521.13,0.00013698,2]
[360962820,1747165847944,-2063.35,0.00013698,2]
[360962821,1747165847955,-400.0,0.00013698,2]
[360962822,1747165847965,-3442.94,0.00013698,2]
[360962823,1747165847976,-1029.81,0.00013698,2]
[360962824,1747165847991,-400.0,0.00013698,2]
[360962825,1747165848001,-492.12,0.00013698,2]
[360962826,1747165848012,-994.16,0.00013698,2]
[360962827,1747165848022,-400.0,0.00013698,2]
[360962828,1747165848034,-400.0,0.00013698,2]
[360962829,1747165848045,-16552.3,0.00013698,2]
[360962830,1747165848056,-400.0,0.00013698,2]
[360962831,1747165848069,-4146.43,0.00013698,2]
[360962832,1747165848080,-935.41,0.00013698,2]
[360962833,1747165848090,-400.0,0.00013698,2]
[360962834,1747165848101,-400.0,0.00013698,2]
[360962835,1747165848114,-904.95,0.00013698,2]
[360962836,1747165848125,-400.0,0.00013698,2]
[360962837,1747165848137,-400.0,0.00013698,2]
[360962838,1747165848149,-400.0,0.00013698,2]
[360962839,1747165848161,-425.69184283,0.00013698,2]
[360962840,1747165848172,-505.97,0.00013698,2]
[360962841,1747165848183,-400.0,0.00013698,2]
[360962842,1747165848194,-400.0,0.00013698,2]
[360962843,1747165848205,-986.97,0.00013698,2]
[360962844,1747165848216,-400.0,0.00013698,2]
[360962845,1747165848500,-400.0,0.00013698,2]
[360962846,1747165848536,-2080.0,0.00013698,2]
[360962847,1747165848546,-856.98,0.00013698,2]
[360962848,1747165848556,-400.0,0.00013698,2]
[360962849,1747165848566,-400.0,0.00013698,2]
[360962850,1747165848575,-816.18,0.00013698,2]
[360962851,1747165848584,-400.0,0.00013698,2]
[360962852,1747165848594,-4090.44,0.00013698,2]
[360962853,1747165848604,-400.0,0.00013698,2]
[360962854,1747165848614,-2500.06,0.00013698,2]
[360962855,1747165848624,-400.0,0.00013698,2]
[360962856,1747165848635,-1839.26,0.00013698,2]
[360962857,1747165848647,-400.0,0.00013698,2]
[360962858,1747165848657,-729.1,0.00013698,2]
[360962859,1747165848667,-400.0,0.00013698,2]
[360962860,1747165848678,-2414.43,0.00013698,2]
[360962861,1747165848688,-805.32,0.00013698,2]
[360962862,1747165848698,-452.32,0.00013698,2]
[360962863,1747165848708,-579.15,0.00013698,2]
[360962864,1747165848718,-823.91,0.00013698,2]
[360962865,1747165848728,-400.0,0.00013698,2]
[360962866,1747165848738,-400.0,0.00013698,2]
[360962867,1747165848748,-408.05309755,0.00013698,2]
[360962868,1747165848758,-400.0,0.00013698,2]
[360962869,1747165848768,-400.0,0.00013698,2]
[360962870,1747165848779,-2287.15,0.00013698,2]
[360962871,1747165848789,-1256.54,0.00013698,2]
[360962872,1747165848800,-4313.52,0.00013698,2]
[360962873,1747165848811,-3147.99,0.00013698,2]
[360962874,1747165848822,-400.0,0.00013698,2]
[360962875,1747165848832,-495.31940556,0.00013698,2]
[360962876,1747165848842,-5823.6,0.00013698,2]
[360962877,1747165848852,-400.0,0.00013698,2]
[360962878,1747165848862,-400.0,0.00013698,2]
[360962879,1747165848871,-400.0,0.00013698,2]
[360962880,1747165848881,-400.0,0.00013698,2]
[360962881,1747165848894,-495.83,0.00013698,2]
[360962882,1747165848904,-449.02,0.00013698,2]
[360962883,1747165848914,-400.0,0.00013698,2]
[360962884,1747165848924,-400.0,0.00013698,2]
[360962885,1747165848934,-292.95697214,0.00013698,2]
[360962886,1747165848944,-400.0,0.00013698,2]
[360962887,1747165848954,-500.0,0.00013698,2]
[360962888,1747165848963,-727.79,0.00013698,2]
[360962889,1747165848973,-400.0,0.00013698,2]
[360962890,1747165848986,-5870.97,0.00013698,2]
[360962891,1747165848998,-624.88,0.00013698,2]
[360962892,1747165849008,-563.66,0.00013698,2]
[360962893,1747165849019,-548.75,0.00013698,2]
[360962894,1747165849030,-1915.24,0.00013698,2]
[360962895,1747165849040,-1995.86,0.00013698,2]
[360962896,1747165849050,-400.0,0.00013698,2]
[360962897,1747165849061,-413.42293248,0.00013698,2]
[360962898,1747165849071,-859.29,0.00013698,2]
[360962899,1747165849081,-1099.69,0.00013698,2]
[360962900,1747165849091,-400.0,0.00013698,2]
[360962901,1747165849101,-580.59,0.00013698,2]
[360962902,1747165849111,-400.0,0.00013698,2]
[360962903,1747165849121,-400.0,0.00013698,2]
[360962904,1747165849131,-190.821136,0.00013698,2]
[360962905,1747165849141,-400.0,0.00013698,2]
[360962906,1747165849151,-537.52,0.00013698,2]
[360962907,1747165849162,-1376.43,0.00013698,2]
[360962908,1747165849172,-400.0,0.00013698,2]
[360962909,1747165849182,-3838.26,0.00013698,2]
[360962910,1747165849192,-887.96,0.00013698,2]
[360962911,1747165849202,-1220.47,0.00013698,2]
[360962912,1747165849212,-400.0,0.00013698,2]
[360962913,1747165849225,-424.99251723,0.00013698,2]
[360962914,1747165849235,-400.0,0.00013698,2]
[360962915,1747165849245,-670.92,0.00013698,2]
[360962916,1747165849256,-400.0,0.00013698,2]
[360962917,1747165849267,-2719.72,0.00013698,2]
[360962918,1747165849278,-400.0,0.00013698,2]
[360962919,1747165849288,-400.0,0.00013698,2]
[360962920,1747165849299,-1026.49,0.00013698,2]
[360962921,1747165849310,-400.0,0.00013698,2]
[360962922,1747165849320,-400.0,0.00013698,2]
[360962923,1747165849330,-449.07,0.00013698,2]
[360962924,1747165849341,-2437.19,0.00013698,2]
[360962925,1747165849351,-567.23,0.00013698,2]
[360962926,1747165849361,-534.54,0.00013698,2]
[360962927,1747165849372,-535.13,0.00013698,2]
[360962928,1747165849383,-652.83,0.00013698,2]
[360962929,1747165849393,-1740.08,0.00013698,2]
[360962930,1747165849404,-1335.11,0.00013698,2]
[360962931,1747165849415,-400.0,0.00013698,2]
[360962932,1747165849426,-1075.19,0.00013698,2]
[360962933,1747165849436,-400.0,0.00013698,2]
[360962934,1747165849447,-400.0,0.00013698,2]
[360962935,1747165849458,-406.1,0.00013698,2]
[360962936,1747165849468,-400.0,0.00013698,2]
[360962937,1747165849478,-1466.01,0.00013698,2]
[360962938,1747165849489,-10256.24,0.00013698,2]
[360962939,1747165849499,-400.0,0.00013698,2]
[360962940,1747165849509,-774.91,0.00013698,2]
[360962941,1747165849521,-400.0,0.00013698,2]
[360962942,1747165849531,-16392.4,0.00013698,2]
[360962943,1747165849541,-441.26,0.00013698,2]
[360962944,1747165849551,-400.0,0.00013698,2]
[360962945,1747165849561,-2726.69,0.00013698,2]
[360962946,1747165849571,-7683.71,0.00013698,2]
[360962947,1747165849582,-400.0,0.00013698,2]
[360962948,1747165849592,-400.0,0.00013698,2]
[360962949,1747165849602,-400.0,0.00013698,2]
[360962950,1747165849612,-363.4170651,0.00013698,2]
[360962951,1747165849621,-400.0,0.00013698,2]
[360962952,1747165849631,-848.91,0.00013698,2]
[360962953,1747165849640,-2670.95,0.00013698,2]
[360962954,1747165849651,-1207.19,0.00013698,2]
[360962955,1747165849661,-400.0,0.00013698,2]
[360962956,1747165849671,-832.45,0.00013698,2]
[360962957,1747165849681,-806.19,0.00013698,2]
[360962958,1747165849691,-421.54,0.00013698,2]
[360962959,1747165849702,-1296.89,0.00013698,2]
[360962960,1747165849712,-2572.06,0.00013698,2]
[360962961,1747165849722,-400.0,0.00013698,2]
[360962962,1747165849732,-472.12,0.00013698,2]
[360962963,1747165849741,-2659.27,0.00013698,2]
[360962964,1747165849751,-2870.42,0.00013698,2]
[360962965,1747165849761,-226.007664,0.00013699,2]
[360962966,1747165849771,-871.999179,0.00013699,2]
[360962967,1747165849781,-500.0,0.00013699,2]
[360962968,1747165849791,-500.0,0.00013699,2]
[360962969,1747165849801,-500.0,0.00013699,2]
[360962970,1747165849812,-500.0,0.00013699,2]
[360962971,1747165849822,-500.0,0.00013699,2]
[360962972,1747165849831,-445.05040127,0.00013699,2]
[360962973,1747165849842,-500.0,0.00013699,2]
[360962974,1747165849852,-500.0,0.00013699,2]
[360962975,1747165849862,-500.0,0.00013699,2]
[360962976,1747165849872,-500.0,0.00013699,2]
[360962977,1747165849882,-500.0,0.00013699,2]
[360962978,1747165849893,-500.0,0.00013699,2]
[360962979,1747165849903,-500.0,0.00013699,2]
[360962980,1747165849914,-500.0,0.00013699,2]
[360962981,1747165849924,-500.0,0.00013699,2]
[360962982,1747165849934,-500.0,0.00013699,2]
[360962983,1747165849944,-500.0,0.00013699,2]
[360962984,1747165849953,-500.0,0.00013699,2]
[360962985,1747165849963,-500.0,0.00013699,2]
[360962986,1747165849976,-500.0,0.00013699,2]
[360962987,1747165849987,-500.0,0.00013699,2]
[360962988,1747165849997,-500.0,0.00013699,2]
[360962989,1747165850007,-500.0,0.00013699,2]
[360962990,1747165850018,-500.0,0.00013699,2]
[360962991,1747165850028,-500.0,0.00013699,2]
[360962992,1747165850037,-500.0,0.00013699,2]
[360962993,1747165850048,-500.0,0.00013699,2]
[360962994,1747165850057,-300.78084365,0.00013699,2]
[360962995,1747165850067,-500.0,0.00013699,2]
[360962996,1747165850076,-500.0,0.00013699,2]
[360962997,1747165850086,-500.0,0.00013699,2]
[360962998,1747165850102,-500.0,0.00013699,2]
[360962999,1747165850111,-500.0,0.00013699,2]
[360963000,1747165850121,-500.0,0.00013699,2]
[360963001,1747165850130,-500.0,0.00013699,2]
[360963002,1747165850141,-500.0,0.00013699,2]
[360963003,1747165850152,-500.0,0.00013699,2]
[360963004,1747165850162,-500.0,0.00013699,2]
[360963005,1747165850172,-500.0,0.00013699,2]
[360963006,1747165850182,-650.0,0.00013699,2]
[360963007,1747165850196,-500.0,0.00013699,2]
[360963008,1747165850206,-500.0,0.00013699,2]
[360963009,1747165850216,-500.0,0.00013699,2]
[360963010,1747165850226,-500.0,0.00013699,2]
[360963011,1747165850236,-500.0,0.00013699,2]
[360963012,1747165850246,-500.0,0.00013699,2]
[360963013,1747165850256,-500.0,0.00013699,2]
[360963014,1747165850265,-500.0,0.00013699,2]
[360963015,1747165850275,-500.0,0.00013699,2]
[360963016,1747165850285,-500.0,0.00013699,2]
[360963017,1747165850295,-500.0,0.00013699,2]
[360963018,1747165850305,-500.0,0.00013699,2]
[360963019,1747165850315,-500.0,0.00013699,2]
[360963020,1747165850324,-500.0,0.00013699,2]
[360963021,1747165850334,-500.0,0.00013699,2]
[360963022,1747165850344,-160.0,0.0001374,2]
[360963023,1747165850354,-422.24190663,0.0001374,2]
[360963024,1747165850363,-160.0,0.0001374,2]
[360963025,1747165850374,-329.7503194,0.000138,2]
[360963026,1747165850385,-203.83185187,0.00013865,2]
[360963027,1747165850398,-3531.8658352,0.00013888,2]
[360963028,1747165850408,-16229.32191265,0.000139,2]
[360963029,1747165850417,-151.0,0.00013972,2]
[360963030,1747165850427,-151.0,0.00013972,2]
[360963031,1747165850437,-205.666842,0.00013972,2]
[360963032,1747165850447,-151.0,0.00013972,2]
[360963033,1747165850456,-151.0,0.00013972,2]
[360963034,1747165850466,-151.0,0.00013972,2]
[360963035,1747165850477,-151.0,0.00013972,2]
[360963036,1747165850488,-400.0,0.00013972,2]
[360963037,1747165850499,-400.0,0.00013972,2]
[360963038,1747165850509,-712.14,0.00013972,2]
[360963039,1747165850519,-400.0,0.00013972,2]
[360963040,1747165850530,-151.0,0.00013972,2]
[360963041,1747165850540,-187.643152,0.00013972,2]
[360963042,1747165850550,-404.76,0.00013972,2]
[360963043,1747165850560,-400.0,0.00013972,2]
[360963044,1747165850570,-151.0,0.00013972,2]
[360963045,1747165850579,-187.643152,0.00013972,2]
[360963046,1747165850589,-400.0,0.00013972,2]
[360963047,1747165850599,-400.0,0.00013972,2]
[360963048,1747165850612,-424.79,0.00013972,2]
[360963049,1747165850621,-400.0,0.00013972,2]
[360963050,1747165850631,-275.52622314,0.00013972,2]
[360963051,1747165850641,-544.80884484,0.00013972,2]
[360963052,1747165850653,-400.0,0.00013972,2]
[360963053,1747165850663,-400.0,0.00013972,2]
[360963054,1747165850674,-400.0,0.00013972,2]
[360963055,1747165850684,-400.0,0.00013972,2]
[360963056,1747165850694,-400.0,0.00013972,2]
[360963057,1747165850704,-400.0,0.00013972,2]
[360963058,1747165850714,-554.3,0.00013972,2]
[360963059,1747165850724,-400.0,0.00013972,2]
[360963060,1747165850734,-400.0,0.00013972,2]
[360963061,1747165850743,-400.0,0.00013972,2]
[360963062,1747165850753,-400.0,0.00013972,2]
[360963063,1747165850763,-400.0,0.00013972,2]
[360963064,1747165850773,-400.0,0.00013972,2]
[360963065,1747165850782,-400.0,0.00013972,2]
[360963066,1747165850792,-400.0,0.00013972,2]
[360963067,1747165850802,-400.0,0.00013972,2]
[360963068,1747165850812,-400.0,0.00013972,2]
[360963069,1747165850822,-400.0,0.00013972,2]
[360963070,1747165850832,-528.76,0.00013972,2]
[360963071,1747165850842,-513.93,0.00013972,2]
[360963072,1747165850852,-400.0,0.00013972,2]
[360963073,1747165850863,-400.0,0.00013972,2]
[360963074,1747165850873,-400.0,0.00013972,2]
[360963075,1747165850883,-872.51,0.00013972,2]
[360963076,1747165850893,-553.57,0.00013972,2]
[360963077,1747165850903,-400.0,0.00013972,2]
[360963078,1747165850913,-400.0,0.00013972,2]
[360963079,1747165850923,-400.0,0.00013972,2]
[360963080,1747165850933,-400.0,0.00013972,2]
[360963081,1747165850942,-413.14,0.00013972,2]
[360963082,1747165851027,-400.0,0.00013972,2]
[360963083,1747165851036,-400.0,0.00013972,2]
[360963084,1747165851045,-432.64,0.00013972,2]
[360963085,1747165851054,-400.0,0.00013972,2]
[360963086,1747165851065,-400.0,0.00013972,2]
[360963087,1747165851075,-404.65546797,0.00013972,2]
[360963088,1747165851084,-400.0,0.00013972,2]
[360963089,1747165851094,-371.186684,0.00013972,2]
[360963090,1747165851103,-881.12,0.00013972,2]
[360963091,1747165851113,-371.186684,0.00013972,2]
[360963092,1747165851122,-400.0,0.00013972,2]
[360963093,1747165851132,-549.82535415,0.00013972,2]
[360963094,1747165851141,-382.882211,0.00013972,2]
[360963095,1747165851153,-382.882211,0.00013972,2]
[360963096,1747165851163,-400.0,0.00013972,2]
[360963097,1747165851172,-407.21,0.00013972,2]
[360963098,1747165851181,-894.29,0.00013972,2]
[360963099,1747165851191,-400.0,0.00013972,2]
[360963100,1747165851201,-400.0,0.00013972,2]
[360963101,1747165851210,-400.0,0.00013972,2]
[360963102,1747165851220,-400.0,0.00013972,2]
[360963103,1747165851229,-400.0,0.00013972,2]
[360963104,1747165851239,-400.0,0.00013972,2]
[360963105,1747165851248,-588.25,0.00013972,2]
[360963106,1747165851258,-400.0,0.00013972,2]
[360963107,1747165851267,-169.28552595,0.00013972,2]
[360963108,1747165851277,-400.0,0.00013972,2]
[360963109,1747165851286,-400.0,0.00013972,2]
[360963110,1747165851297,-400.0,0.00013972,2]
[360963111,1747165851306,-400.0,0.00013972,2]
[360963112,1747165851316,-400.0,0.00013972,2]
[360963113,1747165851326,-508.19216818,0.00013972,2]
[360963114,1747165851336,-400.0,0.00013972,2]
[360963115,1747165851345,-400.0,0.00013972,2]
[360963116,1747165851355,-151.0,0.00013972,2]
[360963117,1747165851364,-1279.28,0.00013972,2]
[360963118,1747165851374,-1355.91,0.00013972,2]
[360963119,1747165851385,-400.0,0.00013972,2]
[360963120,1747165851397,-400.0,0.00013972,2]
[360963121,1747165851407,-1726.99,0.00013972,2]
[360963122,1747165851416,-400.0,0.00013972,2]
[360963123,1747165851426,-400.0,0.00013972,2]
[360963124,1747165851436,-400.0,0.00013972,2]
[360963125,1747165851446,-400.0,0.00013972,2]
[360963126,1747165851456,-400.0,0.00013972,2]
[360963127,1747165851465,-400.0,0.00013972,2]
[360963128,1747165851475,-400.0,0.00013972,2]
[360963129,1747165851485,-400.0,0.00013972,2]
[360963130,1747165851494,-400.0,0.00013972,2]
[360963131,1747165851503,-702.3,0.00013972,2]
[360963132,1747165851512,-429.75,0.00013972,2]
[360963133,1747165851522,-431.7,0.00013972,2]
[360963134,1747165851531,-628.61,0.00013972,2]
[360963135,1747165851540,-400.0,0.00013972,2]
[360963136,1747165851550,-151.0,0.00013972,2]
[360963137,1747165851559,-400.0,0.00013972,2]
[360963138,1747165851568,-400.0,0.00013972,2]
[360963139,1747165851577,-400.0,0.00013972,2]
[360963140,1747165851587,-608.59,0.00013972,2]
[360963141,1747165851596,-400.0,0.00013972,2]
[360963142,1747165851605,-828.07,0.00013972,2]
[360963143,1747165851614,-400.0,0.00013972,2]
[360963144,1747165851623,-400.0,0.00013972,2]
[360963145,1747165851633,-497.17,0.00013972,2]
[360963146,1747165851642,-503.15,0.00013972,2]
[360963147,1747165851654,-400.0,0.00013972,2]
[360963148,1747165851663,-400.0,0.00013972,2]
[360963149,1747165851672,-839.66,0.00013972,2]
[360963150,1747165851682,-400.0,0.00013972,2]
[360963151,1747165851692,-400.0,0.00013972,2]
[360963152,1747165851701,-400.0,0.00013972,2]
[360963153,1747165851711,-400.0,0.00013972,2]
[360963154,1747165851720,-416.3,0.00013972,2]
[360963155,1747165851730,-400.0,0.00013972,2]
[360963156,1747165851740,-400.0,0.00013972,2]
[360963157,1747165851749,-766.17,0.00013972,2]
[360963158,1747165851758,-400.0,0.00013972,2]
[360963159,1747165851768,-400.0,0.00013972,2]
[360963160,1747165851778,-400.0,0.00013972,2]
[360963161,1747165851787,-407.79,0.00013972,2]
[360963162,1747165851797,-400.0,0.00013972,2]
[360963163,1747165851807,-831.59,0.00013972,2]
[360963164,1747165851816,-693.5,0.00013972,2]
[360963165,1747165851825,-1162.47,0.00013972,2]
[360963166,1747165851835,-1179.2,0.00013972,2]
[360963167,1747165851844,-519.55,0.00013972,2]
[360963168,1747165851853,-315.45,0.00013972,2]
[360963169,1747165851863,-400.0,0.00013972,2]
[360963170,1747165851872,-892.7,0.00013972,2]
[360963171,1747165851881,-574.26,0.00013972,2]
[360963172,1747165851891,-400.0,0.00013972,2]
[360963173,1747165851904,-701.53,0.00013972,2]
[360963174,1747165851913,-427.09,0.00013972,2]
[360963175,1747165851923,-400.0,0.00013972,2]
[360963176,1747165851933,-400.0,0.00013972,2]
[360963177,1747165851942,-814.84,0.00013972,2]
[360963178,1747165851952,-400.0,0.00013972,2]
[360963179,1747165851961,-1623.07,0.00013972,2]
[360963180,1747165851971,-400.0,0.00013972,2]
[360963181,1747165851981,-930.33,0.00013972,2]
[360963182,1747165851992,-483.74,0.00013972,2]
[360963183,1747165852002,-2706.11,0.00013972,2]
[360963184,1747165852012,-400.0,0.00013972,2]
[360963185,1747165852022,-400.0,0.00013972,2]
[360963186,1747165852032,-247.19976881,0.00013972,2]
[360963187,1747165852042,-2261.25,0.00013972,2]
[360963188,1747165852051,-400.0,0.00013972,2]
[360963189,1747165852062,-723.53,0.00013972,2]
[360963190,1747165852072,-1679.28,0.00013972,2]
[360963191,1747165852082,-1652.08,0.00013972,2]
[360963192,1747165852092,-853.73,0.00013972,2]
[360963193,1747165852102,-400.0,0.00013972,2]
[360963194,1747165852113,-400.0,0.00013972,2]
[360963195,1747165852124,-3465.76,0.00013972,2]
[360963196,1747165852134,-400.0,0.00013972,2]
[360963197,1747165852145,-400.0,0.00013972,2]
[360963198,1747165852159,-878.62,0.00013972,2]
[360963199,1747165852170,-400.0,0.00013972,2]
[360963200,1747165852180,-408.39,0.00013972,2]
[360963201,1747165852190,-151.0,0.00013972,2]
[360963202,1747165852201,-438.44,0.00013972,2]
[360963203,1747165852210,-413.27,0.00013972,2]
[360963204,1747165852220,-400.0,0.00013972,2]
[360963205,1747165852230,-400.0,0.00013972,2]
[360963206,1747165852240,-400.0,0.00013972,2]
[360963207,1747165852249,-400.0,0.00013972,2]
[360963208,1747165852259,-400.0,0.00013972,2]
[360963209,1747165852268,-400.0,0.00013972,2]
[360963210,1747165852278,-430.39,0.00013972,2]
[360963211,1747165852288,-400.0,0.00013972,2]
[360963212,1747165852298,-2051.84,0.00013972,2]
[360963213,1747165852307,-777.37,0.00013972,2]
[360963214,1747165852317,-546.0,0.00013972,2]
[360963215,1747165852326,-556.94,0.00013972,2]
[360963216,1747165852336,-400.0,0.00013972,2]
[360963217,1747165852345,-400.0,0.00013972,2]
[360963218,1747165852355,-400.0,0.00013972,2]
[360963219,1747165852364,-400.0,0.00013972,2]
[360963220,1747165852374,-508.07,0.00013972,2]
[360963221,1747165852383,-400.0,0.00013972,2]
[360963222,1747165852395,-181.89975755,0.00013972,2]
[360963223,1747165852406,-400.0,0.00013972,2]
[360963224,1747165852415,-417.69,0.00013972,2]
[360963225,1747165852425,-868.4,0.00013972,2]
[360963226,1747165852434,-2919.44,0.00013972,2]
[360963227,1747165852443,-400.0,0.00013972,2]
[360963228,1747165852453,-706.0,0.00013972,2]
[360963229,1747165852463,-558.26,0.00013972,2]
[360963230,1747165852472,-2237.0,0.00013972,2]
[360963231,1747165852481,-400.0,0.00013972,2]
[360963232,1747165852491,-588.78,0.00013972,2]
[360963233,1747165852501,-400.0,0.00013972,2]
[360963234,1747165852511,-1119.29,0.00013972,2]
[360963235,1747165852520,-400.0,0.00013972,2]
[360963236,1747165852529,-1264.19,0.00013972,2]
[360963237,1747165852539,-809.15,0.00013972,2]
[360963238,1747165852550,-400.0,0.00013972,2]
[360963239,1747165852560,-400.0,0.00013972,2]
[360963240,1747165852569,-475.7,0.00013972,2]
[360963241,1747165852579,-636.22,0.00013972,2]
[360963242,1747165852591,-753.85,0.00013972,2]
[360963243,1747165852601,-1614.19,0.00013972,2]
[360963244,1747165852610,-400.0,0.00013972,2]
[360963245,1747165852620,-400.0,0.00013972,2]
[360963246,1747165852630,-400.0,0.00013972,2]
[360963247,1747165852641,-400.0,0.00013972,2]
[360963248,1747165852654,-400.0,0.00013972,2]
[360963249,1747165852663,-1842.8,0.00013972,2]
[360963250,1747165852673,-8357.27,0.00013972,2]
[360963251,1747165852682,-400.0,0.00013972,2]
[360963252,1747165852692,-428.64,0.00013972,2]
[360963253,1747165852701,-400.0,0.00013972,2]
[360963254,1747165852710,-2857.27160734,0.00013972,2]
[360963255,1747165852746,-1047.15839266,0.00013972,2]
[360963256,1747165852755,-400.0,0.00013972,2]
[360963257,1747165852764,-259.58608843,0.00013972,2]
[360963258,1747165852776,-870.15391157,0.00013972,2]
[360963259,1747165852785,-400.0,0.00013972,2]
[360963260,1747165852795,-400.0,0.00013972,2]
[360963261,1747165852804,-400.0,0.00013972,2]
[360963262,1747165852814,-400.0,0.00013972,2]
[360963263,1747165852823,-426.76,0.00013972,2]
[360963264,1747165852833,-442.6,0.00013972,2]
[360963265,1747165852842,-1486.21,0.00013972,2]
[360963266,1747165852851,-522.32,0.00013972,2]
[360963267,1747165852860,-400.0,0.00013972,2]
[360963268,1747165852870,-400.0,0.00013972,2]
[360963269,1747165852879,-400.0,0.00013972,2]
[360963270,1747165852888,-400.0,0.00013972,2]
[360963271,1747165852900,-453.62,0.00013972,2]
[360963272,1747165852909,-1460.46,0.00013972,2]
[360963273,1747165852919,-932.14,0.00013972,2]
[360963274,1747165852928,-425.32,0.00013972,2]
[360963275,1747165852937,-400.0,0.00013972,2]
[360963276,1747165852946,-1903.41,0.00013972,2]
[360963277,1747165852955,-1060.07,0.00013972,2]
[360963278,1747165852964,-12192.69,0.00013972,2]
[360963279,1747165852974,-151.0,0.00013972,2]
[360963280,1747165852985,-631.32,0.00013972,2]
[360963281,1747165852994,-400.0,0.00013972,2]
[360963282,1747165853004,-400.0,0.00013972,2]
[360963283,1747165853015,-400.0,0.00013972,2]
[360963284,1747165853025,-400.0,0.00013972,2]
[360963285,1747165853035,-3260.78,0.00013972,2]
[360963286,1747165853045,-844.29,0.00013972,2]
[360963287,1747165853055,-400.0,0.00013972,2]
[360963288,1747165853064,-400.0,0.00013972,2]
[360963289,1747165853074,-982.99,0.00013972,2]
[360963290,1747165853083,-435.44,0.00013972,2]
[360963291,1747165853092,-2145.6,0.00013972,2]
[360963292,1747165853101,-550.32,0.00013972,2]
[360963293,1747165853111,-405.56,0.00013972,2]
[360963294,1747165853121,-1191.85,0.00013972,2]
[360963295,1747165853131,-400.0,0.00013972,2]
[360963296,1747165853141,-400.0,0.00013972,2]
[360963297,1747165853156,-1733.21,0.00013972,2]
[360963298,1747165853165,-617.47,0.00013972,2]
[360963299,1747165853175,-10149.52,0.00013972,2]
[360963300,1747165853184,-400.0,0.00013972,2]